Cogmind - Beta 12 @@@ ROGUE MODE // 2024.01.16 @ 11:49:52 Player: UberDoot Result: Destroyed by S-10 Pest with Light Assault Rifle Performance ------------- Evolutions (2) 1000 Regions Visited (9) 1800 Robots Destroyed (110) 550 Value Destroyed (2830) 2830 Prototype IDs (28) 560 Alien Tech Used (0) 0 Bonus (1276) 1276 TOTAL SCORE: 8016 Bonus ------- High Alert Combat Kills 155 Follower Combat Kills 250 Entered Garrisons 200 Used RIF Installer 500 Aligned with FarCom 300 Friendly Fire -129 Cogmind --------- Core Integrity 0/550 Matter 242/300 Energy 140/140 System Corruption 3% Temperature Cool (0) Movement Hovering (104) Ox1 Location -8/Storage Parts ------- > --- POWER (1) -------- Light Deuterium Engine > --- PROPULSION (4) --- Gravmag System Gyrokinetic Inverter Gyrokinetic Inverter > --- UTILITY (4) ------ High-capacity Storage Unit System Shield System Shield Relay Coupler [Swarmer] (25) > --- WEAPON (2) ------- Remote Datajack Katana (fused) > --- INVENTORY (20) --- Compact Wheel Medium Storage Unit High-capacity Storage Unit Compact Matter Pod (0) Improved Signal Interpreter Melee Analysis Suite Improved Launcher Guidance Computer Transmission Jammer Improved Propulsion Shielding Layered Medium Armor Plating Medium Reflective Plating Advanced Hacking Suite Variable Charge Gun Variable Charge Gun Advanced Plasma Cannon Magnetic Acceleration Cannon Improved Datajack Peak State ------------ > --- POWER ------------ Light Nuclear Core > --- PROPULSION ------- Light Treads Improved Medium Treads Improved Medium Treads Armored Medium Treads > --- UTILITY ---------- High-capacity Storage Unit Layered Medium Armor Plating System Shield System Shield > --- WEAPON ----------- Magnetic Acceleration Cannon Katana > --- INVENTORY -------- Light Deuterium Engine Gravmag System Gyrokinetic Inverter Gyrokinetic Inverter Medium Storage Unit High-capacity Storage Unit Improved Signal Interpreter Melee Analysis Suite Improved Launcher Guidance Computer Transmission Jammer Advanced Hacking Suite Relay Coupler [NC] Relay Coupler [NC] Relay Coupler [Swarmer] Wave Gun Variable Charge Gun Variable Charge Gun Improved Datajack Remote Datajack [Rating: 47] Favorites ----------- Power Cooled Ion Engine Engine Cooled Ion Engine Power Core Light Nuclear Core Propulsion Aluminum Leg Treads Light Treads Leg Aluminum Leg Wheel Armored Wheel Hover Unit Aerolev Unit Flight Unit Flight Unit Utility Medium Storage Unit Device Seismic Detector Storage Medium Storage Unit Processor Advanced Targeting Computer Hackware System Shield Protection Light Armor Plating Weapon Katana Energy Gun Heavy EM Pulse Gun Energy Cannon Particle Cannon Ballistic Gun Minigun Ballistic Cannon Light Cannon Launcher Rocket Launcher Special Weapon Remote Datajack Impact Weapon Heavy Hammer Slashing Weapon Katana Special Melee Weapon Improved Datajack Build | -11 -10 -10 -9 -9 -9 -8 -8 -8 -8 ------- Run | Jun Mat Min Mat Min Exi Min Mat Gar Sto Slots Evolved 4 | . . . 2 . . . 2 . . Power . | . . . . . . . . . . Propulsion 2 | . . . 1 . . . 1 . . Utility 2 | . . . 1 . . . 1 . . Weapon . | . . . . . . . . . . Parts Attached 197 | 7 22 10 20 11 1 26 37 53 10 Power 26 | 1 4 1 1 1 1 2 7 7 1 Engine 23 | 1 4 1 . 1 1 2 7 5 1 Core 3 | . . . 1 . . . . 2 . Reactor . | . . . . . . . . . . Propulsion 54 | 2 5 3 4 1 . 7 9 19 4 Treads 10 | . . . . . . . 2 7 1 Leg 13 | 2 5 3 . . . 3 . . . Wheel 11 | . . . . . . 4 . 7 . Hover 14 | . . . 4 1 . . 6 . 3 Flight 6 | . . . . . . . 1 5 . Utility 45 | 2 2 1 5 2 . 7 10 14 2 Device 16 | 1 . . 4 . . 4 6 1 . Storage 6 | 1 1 . . . . 2 . 2 . Processor 2 | . . . . 1 . . 1 . . Hackware 4 | . . . . . . . 1 1 2 Protection 17 | . 1 1 1 1 . 1 2 10 . Artifact . | . . . . . . . . . . Weapon 72 | 2 11 5 10 7 . 10 11 13 3 Energy Gun 22 | . 9 3 2 . . 2 2 4 . Energy Cannon 7 | . . . 1 3 . 2 1 . . Ballistic Gun 10 | 2 . . 4 . . 1 3 . . Ballistic Cannon 4 | . . 1 . . . 1 . 1 1 Launcher 9 | . 2 1 1 3 . 2 . . . Special Weapon 8 | . . . . . . 2 1 3 2 Impact Weapon 5 | . . . 2 1 . . 2 . . Slashing Weapon 6 | . . . . . . . 2 4 . Piercing Weapon . | . . . . . . . . . . Special Melee Weapon 1 | . . . . . . . . 1 . Unidentified Prototypes 5 | . 1 . 1 . . . 3 . . Corrupted Parts 2 | . 1 1 . . . . . . . System Corruption 9 | . 2 7 . . . . . . . Parts Lost 36 | . 3 2 . 1 . 14 1 15 . Power 4 | . . . . . . 2 . 2 . Propulsion 14 | . . 1 . 1 . 6 . 6 . Utility 8 | . . . . . . 3 1 4 . Weapon 10 | . 3 1 . . . 3 . 3 . Highest Loss Streak 9 | . 2 1 . 1 . 8 1 9 . To Critical Strikes . | . . . . . . . . . . Average Slot Usage (%) 96 | . 99 99 97 100 100 89 97 94 96 Engine 9 | . 13 14 4 3 11 9 9 6 1 Core 1 | . . . 6 7 . . . 1 7 Treads 3 | . . . . . . . 3 9 27 Leg 12 | . 27 27 6 . . 7 . . . Wheel 5 | . . . . . . 15 5 15 . Hover 9 | . . . 25 33 33 6 23 6 4 Device 7 | . 9 . 10 11 11 13 17 . . Storage 11 | . 14 14 11 11 11 11 9 9 9 Hackware 5 | . . . . . . . 2 18 26 Protection 7 | . 4 14 11 11 11 2 3 7 . Energy Gun 12 | . 25 17 6 11 . 8 3 6 . Energy Cannon 1 | . . . 2 10 11 4 . . . Ballistic Gun 1 | . 1 . 5 . . 3 7 . . Ballistic Cannon 2 | . . 10 3 . . 3 . 1 5 Slashing Weapon 2 | . . . . . . . 5 9 9 Naked Turns . | . . . . . . . . . . Heaviest Build 63 | 14 27 27 28 25 23 28 30 63 63 Greatest Support 107 | 20 20 20 25 25 25 36 40 107 107 Greatest Overweight (x) 14 | . 2 2 3 1 1 5 8 14 1 Average Overweight (x) . | . . 1 . . . . . . . Largest Inventory Capacity 20 | 8 10 10 10 10 10 10 10 20 20 Average Capacity 11 | 7 9 10 10 10 10 10 10 17 20 Most Carried 20 | 7 10 10 10 10 10 10 10 20 20 Average Carried 11 | 5 9 9 8 9 9 9 9 16 19 Final Capacity 20 | 8 10 10 10 10 10 10 10 20 20 Final Carried 20 | 7 10 10 10 9 10 10 10 20 17 Class Distribution -------------------- 52% | Mutant 30% | Scavenger-Mutant 13% | Hacker-Mutant Dominant Class ---------------- Mutant | -10/Materials Mutant | -10/Mines Scavenger-Mutant | -9/Materials Scavenger-Mutant | -9/Mines Mutant | -9/Exiles Scavenger-Mutant | -8/Mines Mutant | -8/Materials Scavenger-Mutant | -8/Garrison Hacker-Mutant | -8/Storage Resources | -11 -10 -10 -9 -9 -9 -8 -8 -8 -8 ----------- Run | Jun Mat Min Mat Min Exi Min Mat Gar Sto Matter Collected 2874 | 307 270 206 321 134 . 406 438 568 224 Remotely . | . . . . . . . . . . Salvage Created 4069 | 103 947 322 241 107 . 383 553 1177 236 Parts 231 | 7 53 25 17 21 . 18 30 47 13 Haulers Intercepted 8 | . 2 . . . . . 4 . 2 Recyclers Shooed 8 | 1 2 1 2 . . . . . 2 Parts Field Recycled . | . . . . . . . . . . Retrieved Matter . | . . . . . . . . . . Parts Self-Destructed . | . . . . . . . . . . Prevented . | . . . . . . . . . . Kills | -11 -10 -10 -9 -9 -9 -8 -8 -8 -8 ------- Run | Jun Mat Min Mat Min Exi Min Mat Gar Sto Combat Hostiles Destroyed 77 | . 16 9 7 10 . 6 9 19 1 Melee 15 | . . . . . . . 7 8 . Guns 22 | . 11 2 1 . . 1 1 6 . Cannons 9 | . . 2 3 . . 2 . 1 1 AOE 25 | . 4 4 2 10 . 3 . 2 . Classes Destroyed 14 | 2 5 . 1 . . 2 . 3 1 Worker 1 | . . . . . . 1 . . . Builder 2 | . . . . . . 2 . . . Tunneler 4 | 2 . . 1 . . 1 . . . Hauler 8 | . 2 . . . . . 4 . 2 Recycler 8 | 1 3 . . 1 . 2 . . 1 Mechanic 1 | . . . . . . . . . 1 Operator 2 | . 1 . . . . . . . 1 Watcher 6 | . 3 . 1 . . . 1 . 1 Swarmer 26 | . 3 3 3 10 . . 3 4 . Grunt 37 | . 13 7 . . . 6 3 8 . Duelist 2 | . . . . . . . . 2 . Sentry 10 | . . . 4 . . . 3 2 1 Programmer 1 | . . . . . . . . 1 . Behemoth 1 | . . . . . . . . 1 . Thug 1 | . . . . . . . . 1 . Best Kill Streak 5 | 1 5 3 5 4 . 5 3 4 3 Combat Bots Only 4 | . 3 3 3 4 . 3 3 4 1 Max Kills in Single Turn 4 | 1 3 3 3 4 . 1 1 1 1 Gunslinging . | . . . . . . . . . . Exploded 4 | . 2 3 2 4 . 1 . 1 . Melee 1 | . . . . . . . 1 1 . Uniques/NPCs Destroyed . | . . . . . . . . . . Combat | -11 -10 -10 -9 -9 -9 -8 -8 -8 -8 -------- Run | Jun Mat Min Mat Min Exi Min Mat Gar Sto Damage Taken 5421 | . 616 383 312 61 . 1216 350 2400 83 Core 1097 | . 154 28 53 11 . 298 15 496 42 Absorbed by Shields . | . . . . . . . . . . Regen/Repaired (Parts) 284 | . 54 . . . . . . . 230 Core Remaining (%) 45 | 100 . 27 . . . 9 . . . Volleys Fired 252 | 17 50 18 23 6 . 35 23 53 27 Largest 2 | 2 2 2 2 2 . 2 2 1 1 Hottest 124 | 40 90 100 124 124 . 120 88 56 53 Shots Fired 382 | 34 87 38 38 9 . 64 31 53 28 Gun 270 | 34 83 29 22 3 . 29 31 39 . Cannon 77 | . . 8 15 2 . 23 . 10 19 Launcher 18 | . 4 1 1 4 . 8 . . . Special 17 | . . . . . . 4 . 4 9 Kinetic 136 | 34 . 8 15 . . 28 22 10 19 Thermal 81 | . . 4 22 5 . 27 9 14 . Explosive 18 | . 4 1 1 4 . 8 . . . Electromagnetic 133 | . 83 25 . . . . . 25 . Robot Hit Streak 21 | 6 6 15 9 3 . 10 21 17 5 Robot Miss Streak 6 | 2 3 3 4 6 . 5 1 5 2 Penetration Max . | . . . . . . . . . . Secondary Targets 2 | . 2 . . . . . . . . Max Gunslinging Chain 1 | . 1 . . . . . . . . Shots Hit Robots 343 | 19 53 28 24 4 . 41 46 108 20 Core Hits 164 | 5 32 20 10 12 . 25 15 39 6 Critical Kills . | . . . . . . . . . . Critical Parts Destroyed 3 | . . . 1 . . . 2 . . Critical Strikes 19 | . 2 . 1 . . . 2 14 . Burn 4 | . . . . . . . . 4 . Corrupt 2 | . 2 . . . . . . . . Smash 3 | . . . 1 . . . 2 . . Sever 10 | . . . . . . . . 10 . Melee Attacks 149 | . . . 3 . . . 59 86 1 Impact 31 | . . . 3 . . . 28 . . Slashing 117 | . . . . . . . 31 85 1 Piercing . | . . . . . . . . . . Sneak Attacks 7 | . . . . . . . 5 2 . Combat Hostiles 3 | . . . . . . . 2 1 . Follow-up Attacks . | . . . . . . . . . . Damage Inflicted 9575 | 202 1182 672 600 540 . 1353 1205 3313 508 Guns 3010 | 202 766 432 208 14 . 330 425 633 . Cannons 1349 | . . 84 172 41 . 354 . 218 480 Explosions 1937 | . 405 156 171 469 . 629 . 107 . Melee 3206 | . . . 49 . . . 780 2349 28 Ramming 35 | . 11 . . 16 . 2 . 6 . Kinetic 1819 | 202 . 84 174 . . 376 285 218 480 Thermal 1151 | . 56 64 206 55 . 346 140 284 . Explosive 1739 | . 349 121 171 469 . 629 . . . Electromagnetic 1625 | . 766 403 . . . . . 456 . Impact 304 | . . . 49 . . . 255 . . Slashing 2902 | . . . . . . . 525 2349 28 Piercing . | . . . . . . . . . . Highest Corruption 9 | . 2 9 . 3 3 3 . 3 3 Average Corruption 4 | . 2 8 . 3 3 3 . 2 3 Corruption Purged . | . . . . . . . . . . Corruption Blocked . | . . . . . . . . . . Effects 100 | . 1 51 . 1 6 12 . 17 12 Message Errors 23 | . . 7 . . 3 . . 6 7 Matter Fused 22 | . . 14 . . . 2 . 4 2 Heat Flow Errors 11 | . 1 3 . 1 1 3 . 2 . Energy Discharges 13 | . . 6 . . 1 2 . 2 2 Parts Rejected 1 | . . 1 . . . . . . . Parts Fused 1 | . . . . . . . . 1 . Data Loss (minor) 13 | . . 11 . . . 1 . 1 . Data Loss (major) 4 | . . 2 . . . 2 . . . Misfires 8 | . . 6 . . . 1 . . 1 Alerts 4 | . . 1 . . 1 1 . 1 . Overload Shots . | . . . . . . . . . . Overflow Damage 301 | . 25 . 39 16 . 37 97 48 39 Projectiles 39 | . . . . . . . . . 39 Explosions 88 | . 25 . 10 16 . 37 . . . Melee 174 | . . . 29 . . . 97 48 . Knockbacks 12 | . . . . . . 7 . 4 1 Impact . | . . . . . . . . . . Kinetic 11 | . . . . . . 7 . 3 1 Secondary 1 | . . . . . . . . 1 . Self-Inflicted Damage 279 | . 59 19 12 8 . 115 . 66 . Shots 11 | . 2 1 1 . . 5 . 2 . Rammed 5 | . . . . 2 . 1 . 1 1 Targets Rammed 8 | . 3 . . 2 . 1 . 1 1 Kicked 3 | . 3 . . . . . . . . Crushed . | . . . . . . . . . . Highest Temperature 300 | . 240 275 300 159 263 280 21 211 90 Average Temperature 79 | . 61 97 130 58 143 96 5 64 29 Received Heat Transfer 2085 | . 321 195 117 . . 612 99 723 18 Effects 7 | . . . 5 . 2 . . . . Energy Bleed 2 | . . . 2 . . . . . . Interference 5 | . . . 3 . 2 . . . . Siege Activations . | . . . . . . . . . . Robots Corrupted 3 | . 1 1 . . . . . 1 . Combat Hostiles 3 | . 1 1 . . . . . 1 . Parts Fried 9 | . 2 2 1 . . . 1 3 . Impact Corruptions 5 | . . . 1 . . . 4 . . Robots Melted 1 | . . . . . . . . 1 . Combat Hostiles 1 | . . . . . . . . 1 . Parts Melted 8 | . . . 2 . . . 1 5 . Heat Transferred 2734 | . 100 74 444 111 . 832 333 840 . Parts Sabotaged . | . . . . . . . . . . Parts Stolen . | . . . . . . . . . . Parts Stripped . | . . . . . . . . . . Power Chain Reactions 5 | . 2 1 . . . . . 2 . Missiles Intercepted . | . . . . . . . . . . Alert | -11 -10 -10 -9 -9 -9 -8 -8 -8 -8 ------- Run | Jun Mat Min Mat Min Exi Min Mat Gar Sto Peak Influence 780 | 15 207 189 274 317 . 77 251 780 494 Initial 380 | . 9 24 . 57 . . 25 38 380 Average 173 | 8 96 59 100 189 . 51 130 426 395 Maximum Alert Level 3 | . 1 . 1 1 . . 1 3 2 Low Security (%) 72 | 100 97 100 93 57 . 100 84 13 . Level 1 12 | . 2 . 6 42 . . 15 21 52 Level 2 14 | . . . . . . . . 62 47 Level 3 . | . . . . . . . . 3 . Level 4 . | . . . . . . . . . . Level 5 . | . . . . . . . . . . High Security . | . . . . . . . . . . Max Security . | . . . . . . . . . . Squads Dispatched 8 | . 5 . . . . . 2 . 1 Investigation 5 | . 3 . . . . . 2 . . Extermination . | . . . . . . . . . . Reinforcement 3 | . 2 . . . . . . . 1 Assault . | . . . . . . . . . . Garrison . | . . . . . . . . . . Intercept . | . . . . . . . . . . Searches Triggered . | . . . . . . . . . . Construction Impeded . | . . . . . . . . . . Haulers Reinforced . | . . . . . . . . . . Active Scanning Responses . | . . . . . . . . . . Cargo Convoy Interrupts . | . . . . . . . . . . Stealth | -11 -10 -10 -9 -9 -9 -8 -8 -8 -8 --------- Run | Jun Mat Min Mat Min Exi Min Mat Gar Sto Distress Signals 5 | . 3 . . . . . 2 . . Communications Jammed . | . . . . . . . . . . Distress Signals . | . . . . . . . . . . Times Spotted 126 | . 28 11 10 10 . 9 17 35 6 Peak Tracking Total 6 | . 5 3 4 4 . 3 6 6 3 Tactical Retreats 11 | . 3 1 . . . . 3 4 . Traps | -11 -10 -10 -9 -9 -9 -8 -8 -8 -8 ------- Run | Jun Mat Min Mat Min Exi Min Mat Gar Sto Traps Triggered 19 | . 2 . . . . . 1 13 3 Indirectly . | . . . . . . . . . . Trap Hack Attempts . | . . . . . . . . . . Triggered . | . . . . . . . . . . Disarmed . | . . . . . . . . . . Reprogrammed . | . . . . . . . . . . Reused . | . . . . . . . . . . Traps Extracted . | . . . . . . . . . . Installed . | . . . . . . . . . . Triggered . | . . . . . . . . . . Exploded 1 | . . . . . . . . 1 . Machines | -11 -10 -10 -9 -9 -9 -8 -8 -8 -8 ---------- Run | Jun Mat Min Mat Min Exi Min Mat Gar Sto Machines Disabled 6 | . 1 1 2 . . 1 . . 1 Max in Single Turn 1 | . 1 1 1 . . 1 . . 1 Phase Generator 1 | . . . . . . . . 1 . Machines Repaired . | . . . . . . . . . . Machines Sabotaged . | . . . . . . . . . . Overloaded Fab Kills . | . . . . . . . . . . Hacking | -11 -10 -10 -9 -9 -9 -8 -8 -8 -8 --------- Run | Jun Mat Min Mat Min Exi Min Mat Gar Sto Machines Accessed 29 | . 9 . 5 . 1 . 8 3 3 Terminals 19 | . 6 . 4 . . . 5 3 1 Fabricators . | . . . . . . . . . . Repair Stations 3 | . 1 . . . . . . . 2 Recycling Units 3 | . 2 . . . . . 1 . . Scanalyzers 2 | . . . 1 . . . 1 . . Garrison Access 1 | . . . . . . . 1 . . Total Hacks 69 | . 21 . 8 . 1 . 21 7 11 Successful 30 | . 8 . 4 . 1 . 11 2 4 Failed 38 | . 12 . 4 . . . 10 5 7 Catastrophic 12 | . 4 . 3 . . . 4 1 . Database Lockouts 1 | . 1 . . . . . . . . Manual 34 | . 17 . 7 . 1 . 9 . . Terminals 41 | . 14 . 6 . . . 9 7 5 Fabricators . | . . . . . . . . . . Repair Stations 9 | . 3 . . . . . . . 6 Recycling Units 6 | . 4 . . . . . 2 . . Scanalyzers 10 | . . . 2 . . . 8 . . Garrison Access 2 | . . . . . . . 2 . . Terminal Hacks 12 | . 5 . 2 . 1 . 2 2 . Part Schematic 1 | . . . 1 . . . . . . Robot Analysis 2 | . 2 . . . . . . . . Open Door 1 | . . . . . . . . 1 . Emergency Access Points 1 | . . . . . . . . 1 . Alert Level 1 | . . . . . . . 1 . . Unreport Threat 1 | . 1 . . . . . . . . Disarm Traps 1 | . 1 . . . . . . . . Investigation Status 1 | . 1 . . . . . . . . Garrison Status 1 | . . . . . . . 1 . . Hauler Manifests 1 | . . . 1 . . . . . . EX-Prototype ID Bank 1 | . . . . . 1 . . . . Fabricator Hacks . | . . . . . . . . . . Repair Station Hacks 6 | . 2 . . . . . . . 4 Scan Component 3 | . 1 . . . . . . . 2 Repair 3 | . 1 . . . . . . . 2 Recycling Unit Hacks 3 | . 1 . . . . . 2 . . Retrieve Matter 1 | . . . . . . . 1 . . Retrieve Components 2 | . 1 . . . . . 1 . . Scanalyzer 8 | . . . 2 . . . 6 . . Insert Component 4 | . . . 1 . . . 3 . . Analyze 4 | . . . 1 . . . 3 . . Garrison Access Hacks 1 | . . . . . . . 1 . . Unlock Access 1 | . . . . . . . 1 . . Unauthorized Hacks . | . . . . . . . . . . Terminals . | . . . . . . . . . . Fabricators . | . . . . . . . . . . Repair Stations . | . . . . . . . . . . Recycling Units . | . . . . . . . . . . Scanalyzers . | . . . . . . . . . . Garrison Access . | . . . . . . . . . . Data Cores Recovered . | . . . . . . . . . . Used . | . . . . . . . . . . Hacking Detections 21 | . 7 . 5 . . . 5 2 2 Full Trace Events 2 | . 1 . . . . . 1 . . Feedback Events . | . . . . . . . . . . Feedback Blocked . | . . . . . . . . . . Robot Schematics Acquired . | . . . . . . . . . . Robots Built . | . . . . . . . . . . Authchips . | . . . . . . . . . . Time . | . . . . . . . . . . Total Robot Build Rating . | . . . . . . . . . . Part Schematics Acquired 3 | . . . 1 . . . 2 . . Parts Built . | . . . . . . . . . . Authchips . | . . . . . . . . . . Time . | . . . . . . . . . . Total Part Build Rating . | . . . . . . . . . . Parts Repaired 3 | . 1 . . . . . . . 2 Time 120 | . 26 . . . . . . . 94 Parts Recycled . | . . . . . . . . . . Recycled Matter . | . . . . . . . . . . Retrieved Matter 172 | . . . . . . . 172 . . Retrieved Components 18 | . 9 . . . . . 9 . . Parts Scanalyzed 4 | . . . 1 . . . 3 . . Part Schematics Acquired 2 | . . . . . . . 2 . . Parts Damaged . | . . . . . . . . . . Bothacking | -11 -10 -10 -9 -9 -9 -8 -8 -8 -8 ------------ Run | Jun Mat Min Mat Min Exi Min Mat Gar Sto Used RIF Installer 1 | . . . . . . . . 1 . Robots Hacked 2 | . . . . . . . . . 2 Non-combat 1 | . . . . . . . . . 1 Combat 1 | . . . . . . . . . 1 Robot Hacks Applied 5 | . . . . . . . . . 5 parse_system 1 | . . . . . . . . . 1 no_distress 1 | . . . . . . . . . 1 generate_anomaly 1 | . . . . . . . . . 1 find_station 1 | . . . . . . . . . 1 go_dormant 1 | . . . . . . . . . 1 Relay Couplers Released 4 | . . . . . . . . 4 . Programmers 4 | . . . . . . . . 4 . Attached 2 | . . . . . . . . . 2 Fabnet Peak Effective % . | . . . . . . . . . . Robots Rewired 1 | . . . . . . . . 1 . Allies Hacked . | . . . . . . . . . . Hacks Repelled . | . . . . . . . . . . Allies | -11 -10 -10 -9 -9 -9 -8 -8 -8 -8 -------- Run | Jun Mat Min Mat Min Exi Min Mat Gar Sto Total Allies 9 | . . 3 . . . 1 . 5 . Largest Group 3 | . . 3 2 . . 1 . 2 1 Highest-Rated Group 40 | . . 40 24 . . 16 . 33 20 Highest-Rated Ally 20 | . . 16 16 . . 16 . 20 20 Total Orders . | . . . . . . . . . . Ally Attacks 31 | . . 7 4 . . 2 . 15 3 Total Damage 567 | . . 62 32 . . 34 . 286 153 Kills 12 | . . 3 . . . 2 . 6 1 Allies Corrupted . | . . . . . . . . . . Allies Melted . | . . . . . . . . . . Field Lobotomies 5 | . . . . . . 1 . 4 . Intel | -11 -10 -10 -9 -9 -9 -8 -8 -8 -8 ------- Run | Jun Mat Min Mat Min Exi Min Mat Gar Sto Robot Analysis Total 2 | . 2 . . . . . . . . Derelict Logs Recovered 3 | . . 1 . 2 . . . . . Drone Launches . | . . . . . . . . . . Drone Recoveries . | . . . . . . . . . . Exploration | -11 -10 -10 -9 -9 -9 -8 -8 -8 -8 ------------- Run | Jun Mat Min Mat Min Exi Min Mat Gar Sto Turns Passed 9458 | 273 2066 1619 468 450 278 757 1268 1856 423 Spaces Moved 6309 | 171 950 787 404 699 501 526 1050 1027 194 Core 15 | 4 . . . . . 4 1 6 . Treads 430 | . . . . . . . 93 177 160 Legs 1969 | 167 950 787 56 . . 9 . . . Wheels 1071 | . . . . . . 395 101 575 . Hover 2810 | . . . 348 699 501 118 855 255 34 Flight 14 | . . . . . . . . 14 . Fastest Speed 43 | 50 120 190 52 52 52 86 43 43 104 Average Speed 110 | 118 181 190 75 52 52 105 62 108 152 Slowest Speed 750 | 120 260 260 240 116 112 300 450 750 240 Overloaded Moves . | . . . . . . . . . . Propulsion Burnouts . | . . . . . . . . . . Robots Hopped . | . . . . . . . . . . Cave-ins Triggered 1 | . . . . . . . . 1 . Exploration Rate (%) 65 | 7 98 100 27 96 91 86 45 81 28 Regions Visited 9 Branch Regions 5 Pre-discovered Areas 1 | . . 1 . . . . . . . Known Exits Taken 1 | . . . . . . . 1 . . Unknown Exits Taken 7 | 1 1 1 1 1 1 1 . . . Scrap Searched 4 | . . 1 . 2 . 1 . . . Spaces Dug 41 | . . . 1 . . 7 32 1 . Terrain Destroyed 172 | . 8 11 7 34 . 64 32 14 2 Melee 34 | . . . 1 . . . 32 1 . Projectile 2 | . . . . . . . . . 2 AOE 136 | . 8 11 6 34 . 64 . 13 . Terrain Rammed . | . . . . . . . . . . Walls Destroyed . | . . . . . . . . . . Machines Disabled . | . . . . . . . . . . Actions | -11 -10 -10 -9 -9 -9 -8 -8 -8 -8 --------- Run | Jun Mat Min Mat Min Exi Min Mat Gar Sto Total 8195 | 208 1212 872 524 771 517 660 1546 1589 296 Wait 884 | 3 136 51 46 49 12 56 310 164 57 Move 6299 | 170 949 786 403 698 500 525 1049 1025 194 Hop . | . . . . . . . . . . Pick Up 108 | 9 20 3 9 1 2 9 21 30 4 Fast Attach 103 | 7 14 5 5 3 . 12 28 28 1 Attach 36 | . 2 3 6 1 1 6 3 9 5 Detach 24 | . 4 1 7 1 1 . 3 6 1 Swap 58 | . 6 2 9 7 . 8 6 16 4 Drop 139 | 2 28 3 13 3 1 8 44 36 1 Fire 252 | 17 50 18 23 6 . 35 23 53 27 Melee 149 | . . . 3 . . . 59 86 1 Ram 5 | . . . . 2 . 1 . 1 1 Kick 3 | . 3 . . . . . . . . Crush . | . . . . . . . . . . Escape Stasis 128 | . . . . . . . . 128 . Rewire 7 | . . . . . . . . 7 . Trap . | . . . . . . . . . . Miscellaneous . | . . . . . . . . . . Route ------- -11/Junkyard -10/Materials (discovered 5 exits: *Mat x3 / [*Min x2]) -10/Mines (discovered 2 exits: *Mat x2) -9/Materials -9/Mines (discovered 3 exits: *Mat x2 / *Exi) -9/Exiles (discovered 2 exits: [*Min x2]) -8/Mines (discovered 2 exits: *Mat x2) -8/Materials (discovered 3 exits: *Sto x2 / Gar) -8/Garrison (discovered 3 exits: *Sto x3) -8/Storage History --------- Turn | Location | Event 5 | -11/Junkyard | Discovered new exit (range 15) 274 | -11/Junkyard | Entered Materials 313 | -10/Materials | Build established: Mutant 704 | -10/Materials | Discovered new exit (range 14) 967 | -10/Materials | Repaired Aluminum Leg 982 | -10/Materials | Discovered new exit (range 8) 1100 | -10/Materials | Central database locked down 1295 | -10/Materials | Discovered new exit (range 10) 1511 | -10/Materials | Core integrity fell below 50% 1666 | -10/Materials | Discovered new exit (range 16) 1800 | -10/Materials | Discovered new exit (range 16) 2340 | -10/Materials | Entered Mines 2681 | -10/Mines | Discovered new exit (range 10) 2951 | -10/Mines | Found a damaged Exp. Sensor Array with a note attached 2958 | -10/Mines | Found Prototype Device 3005 | -10/Mines | Assisted by bots powering up and referring to "LRC-V3" 3176 | -10/Mines | Discovered new exit (range 9) 3241 | -10/Mines | Found a hidden stash of uninstalled traps 3706 | -10/Mines | Learned location of Zion (-6) 3959 | -10/Mines | Entered Materials 3959 | -9/Materials | Accompanied by 2 allies 3959 | -9/Materials | Evolved 2 slots: Propulsion x1, Utility x1 3960 | -9/Materials | Identified Exp. Sensor Array 4397 | -9/Materials | Discovered new exit (range 16) 4427 | -9/Materials | Entered Mines 4441 | -9/Mines | Met a Derelict bent on vengeance 4452 | -9/Mines | Build established: Scavenger-Mutant 4459 | -9/Mines | Discovered new exit (range 9) 4552 | -9/Mines | Learned 4 Materials zone layouts 4648 | -9/Mines | Discovered new exit (range 11) 4759 | -9/Mines | A weapon hastily lodged in a ceiling crevice suddenly fell to the ground 4783 | -9/Mines | Deemed a non-threat by the Exiles lab entrance 4783 | -9/Mines | Discovered new exit (range 5) 4877 | -9/Mines | Entered Exiles 4886 | -9/Exiles | Discovered new exit (range 14) 4900 | -9/Exiles | Met 8R-AWN 4908 | -9/Exiles | Met EX-HEX 4926 | -9/Exiles | Met EX-BIN 4933 | -9/Exiles | Aligned with FarCom system 4933 | -9/Exiles | Given EX-Vault access code 4950 | -9/Exiles | Opened EX-Vault 4954 | -9/Exiles | Found Field Lobotomy Kit 4985 | -9/Exiles | Warned to stay clear of 0b10 Research branches 5000 | -9/Exiles | Met EX-DEC 5059 | -9/Exiles | Visited The Gauntlet 5149 | -9/Exiles | Discovered new exit (range 12) 5155 | -9/Exiles | Left Exiles lab with Field Lobotomy Kit 5155 | -9/Exiles | Entered Mines 5194 | -8/Mines | Lost 3 parts (1n2u) 5396 | -8/Mines | Core integrity fell below 50% 5396 | -8/Mines | Assimilated G-47 Trooper with FLK Orb 5425 | -8/Mines | Lost 8 parts (1p3n1u3w) 5688 | -8/Mines | Core integrity fell below 20% 5751 | -8/Mines | Lost 3 parts (1p2n) 5824 | -8/Mines | Discovered new exit (range 9) 5838 | -8/Mines | Discovered new exit (range 7) 5912 | -8/Mines | Entered Materials 5912 | -8/Materials | Evolved 2 slots: Propulsion x1, Utility x1 5913 | -8/Materials | Identified exit to Storage 6558 | -8/Materials | Build established: Mutant 7159 | -8/Materials | Identified exit to Garrison 7180 | -8/Materials | Entered Garrison 7480 | -8/Garrison | Build established: Hacker-Mutant 7512 | -8/Garrison | Triggered checkpoint 7698 | -8/Garrison | Triggered checkpoint 7714 | -8/Garrison | Assimilated Y-45 Defender with FLK Orb 7802 | -8/Garrison | Triggered checkpoint 7834 | -8/Garrison | Build established: Scavenger-Mutant 7966 | -8/Garrison | Discovered exit to Storage (range 15) 8010 | -8/Garrison | Triggered checkpoint 8016 | -8/Garrison | Assimilated B-36 Bruiser with FLK Orb 8023 | -8/Garrison | Assimilated L-31 Rogue with FLK Orb 8059 | -8/Garrison | Assimilated Y-45 Defender with FLK Orb 8236 | -8/Garrison | Triggered checkpoint 8455 | -8/Garrison | Discovered exit to Storage (range 14) 8563 | -8/Garrison | Spotted B-75 Beast 8583 | -8/Garrison | Core integrity fell below 50% 8593 | -8/Garrison | Crushed by falling debris 8649 | -8/Garrison | Lost 9 parts (1p4n2u2w) 8670 | -8/Garrison | Core integrity fell below 20% 8688 | -8/Garrison | Destroyed B-75 Beast 8856 | -8/Garrison | Met a derelict Sapper fleeing the area 8856 | -8/Garrison | Phase Generator disabled 8873 | -8/Garrison | Build established: Hacker-Mutant 8900 | -8/Garrison | Triggered checkpoint 8965 | -8/Garrison | Discovered exit to Storage (range 13) 8976 | -8/Garrison | Installed Relay Interface Framework 9036 | -8/Garrison | Entered Storage 9036 | -8/Storage | Accompanied by 1 ally 9114 | -8/Storage | Repaired Med. Reflective Plating 9131 | -8/Storage | Repaired Imp. Medium Treads 9459 | -8/Storage | Destroyed by S-10 Pest with Light Assault Rifle Last Messages --------------- 09408_ K-01 Serf collects debris. 09415_ I CHLAB9IJLG8VXEM02 6NPGZFHXAPTUW 09415_ K-01 Serf collects debris. 09417_ Y-45 Defender destroyed. 09417_ ALERT: Hostiles spotted, dispatching reinforcements to Terminal S004. 09418_ R-06 Scavenger collects Lgt. Treads. 09433_ Acquired 34 matter. 09434_ Destroyed Datajack. 09434_ O-16 Technician destroyed. 09437_ K-01 Serf collects debris. 09438_ Acquired 6 matter. 09442_ R-06 Scavenger collects Lgt. Treads. 09445_ Discarded Relay Coupler [NC]. 09446_ R-06 Scavenger collects Beam Rifle. 09447_ F4ANQ#YON%37U,PJLVL1A=0 EQGSJ15TJ|Y9OC: 09449_ R-06 Scavenger collects Imp. Ion Engine. 09458_ Jacked S-10 Pest... >>go_dormant Shutting down primary systems. Map ----- +----------------------------------------------------+ | ??????????????????????#!#???# #????????????????? | | ????????????????# ##### ##### #????????????????? | | ????????????????# % ! #????????????????? | | ????????????????#######^! #????????????????? | | ??????????????????????# " """ #????????????????? | | ??????????????????????#"Y """ #????????????????? | | ??????????????????????#"" """ + ???????????????? | | ??????????????????????# #????????????????? | | ??????????????????????# #????????????????? | | ??????????????????????# ##### #????????????????? | | ?????????????????????## ##??? #????????????????? | | ?????????????????????# #????###????????????????? | | ?????????????????????# #???????????????????????? | | ?????????????????????# #???????????????????????? | | ?????????????????????# #???????????????????????? | | ?????????????????????# #???????????????????????? | | ?????????????????????# r #???????????????????????? | | ?????????????????????# #???????????????Y???????? | | ?????????????????????# #?????????+?????????????? | | ?????????????????????# #??????? #?????????????? | | ????????????????????## ##????? ??????#????????? | | ????????????????????# #####/#### ????????? | | ????????????????????# k ???????? | | ????????????????????# s s %T ?????????? | | ????????????????????# s ! % #???????? | | ????????????????????# % @########## ????????? | | ????????????????????###+###??????????????????????? | | ?????????????????????????????????????????????????? | | ?????????????????????????????????????????????????? | | ?????????????????????????????????????????????????? | | ?????????????????????????????????????????????????? | | ?????????????????????????????????????????????????? | | ?????????????????????????????????????????????????? | | ?????????????????????????????????????????????????? | | ?????????????????????????????????????????????????? | | ?????????????????????????????????????????????????? | | ????????????????????Y????????????????????????????? | | ??????????????????????????????????????Y??????????? | | ?????????????????????????????????????????????????? | | ?????????????????????????????????????????????????? | | ?????????????????????????????????????????????????? | | ?????????????????????????Y???????????????????????? | | ?????????????????????????????????????????????????? | | ?????????????????????????????????????????????????? | | ?????????????????????????????????????????????????? | | ?????????????????????????????????????????????????? | | ?????????????????????????????????????????????????? | | ?????????????????????????????????????????????????? | | ?????????????????????????????????????????????????? | | ?????????????????????????????????????????????????? | +----------------------------------------------------+ Best States ------------- Heat Dissipation 66 Energy Generation 18 Energy Capacity 280 Matter Stores 300 Matter Capacity 300 Sight Range 16 Terrain Scan Range 16 Terrain Scan Density 10 Jamming Range 12 Additional Mass Support 6 Armor Coverage 225 Resistance: TH 15 Evasion (%) 64 Targeting Accuracy 8 Recoil Reduction 4 Defensive Hacking 20 Relay Coupler Types 1 Relay Coupler Value 29 Item Schematics ----------------- Imp. Hover Unit | -9/Materials | Hacked Katana | -8/Materials | Scanalyzed Aerolev Unit | -8/Materials | Scanalyzed Robot Schematics ------------------ None Fabricated ------------ Nothing Alien Tech Used ----------------- None Achievements -------------- Backstab Power Corrupts Universal Adapter Challenges ------------ None Game ------ Seed GuidedTransportTearclaws Manual? 0 Play Time 02:14:33 Cumulative 16.7 hours Start 2024.01.14 @ 14:40:55 End 2024.01.16 @ 11:49:52 Sessions 3 Manual Loads 0 Difficulty Rogue Special Mode None Game No. 10 Rogue 10 Adventurer 0 Explorer 0 Win Type - Total 0 Types 0/0/0/0/0/0/0/0/0 Lore% 17 Gallery% 21 Achievement% 17 Wizard Run 0 Options --------- ASCII 0 Keyboard 1 Movement Numpad Keybinds 0 Fullscreen 1 Font 18/SmallcapsGlow Map View 76x50 Tactical HUD 1 Map Filters NONE Filters NONE Steam 1 RUN: 06d67547-9108-4164-8a62-6e4fee23ba01